bitfinex-derivatives/quotes_BTCF0:USTF0_20250930
["timestamp","ask_amount","ask_price","bid_price","bid_amount"]
[1759240867573,0.36286194,113420.0,113410.0,0.0889292]
[1759240867867,1.80517179,113420.0,113410.0,0.0008]
[1759240868069,1.80517179,113420.0,113400.0,0.0881382]
[1759240868369,0.3608,113410.0,113400.0,0.0881389]
[1759240868761,0.96899755,113410.0,113400.0,0.0881389]
[1759240868968,0.88086235,113410.0,113400.0,0.0881389]
[1759240869169,0.88092429,113410.0,113400.0,0.0881389]
[1759240869466,1.19458194,113410.0,113400.0,0.0885389]
[1759240869666,1.72864429,113410.0,113400.0,0.0881389]
[1759240869867,0.96478804,113410.0,113400.0,0.0885389]
[1759240870167,1.79850804,113410.0,113400.0,0.0885389]
[1759240870574,1.26448569,113410.0,113400.0,0.0885389]
[1759240870770,1.78454804,113410.0,113400.0,0.0885389]
[1759240870969,0.95078804,113410.0,113400.0,0.0885389]
[1759240871172,1.78450804,113410.0,113400.0,0.0885389]
[1759240871875,0.95078804,113410.0,113400.0,0.0885389]
[1759240872069,1.78454804,113410.0,113400.0,0.0885389]
[1759240872270,0.90364569,113410.0,113400.0,0.0885389]
[1759240872465,0.06992569,113410.0,113400.0,0.0885389]
[1759240872872,6.194e-05,113410.0,113400.0,1.00860125]
[1759240873080,6.194e-05,113410.0,113400.0,1.36940125]
[1759240873268,0.00046194,113410.0,113400.0,1.36940125]
[1759240873464,0.3608,113430.0,113400.0,1.8894636]
[1759240873766,0.0008,113430.0,113420.0,0.60818985]
[1759240874166,0.43072985,113440.0,113430.0,0.0881197]
[1759240874775,0.9511922,113440.0,113430.0,0.0881197]
[1759240874974,0.43112985,113440.0,113430.0,0.0881197]
[1759240875376,0.43112985,113440.0,113430.0,0.4881197]
[1759240875581,0.43072985,113440.0,113430.0,0.4881197]
[1759240875875,0.43112985,113440.0,113430.0,0.4881197]
[1759240876270,0.44212985,113440.0,113430.0,0.4881197]
[1759240876678,0.0114,113440.0,113430.0,1.36898205]
[1759240877076,0.3608,113450.0,113440.0,0.0881119]
[1759240877579,0.3608,113460.0,113450.0,0.0881042]
[1759240877778,1.26646658,113470.0,113460.0,0.0880964]
[1759240877979,1.78572893,113470.0,113460.0,0.0880964]
[1759240878172,0.43238658,113470.0,113460.0,0.0880964]
[1759240878479,0.3608,113480.0,113470.0,0.0880886]
[1759240878676,0.3608,113480.0,113470.0,0.60815095]
[1759240879374,1.89827155,113480.0,113440.0,0.0881044]
[1759240879580,1.89827155,113480.0,113450.0,0.0881042]
[1759240879581,0.88086235,113460.0,113450.0,0.0881042]
[1759240879780,0.3608,113460.0,113450.0,0.60816655]
[1759240880278,0.3612,113460.0,113450.0,0.60816655]
[1759240880774,0.0004,113460.0,113450.0,0.60816655]
[1759240880980,0.3616,113470.0,113450.0,0.4881012]
[1759240880981,0.3608,113470.0,113450.0,0.4881012]
[1759240881274,0.3608,113470.0,113450.0,0.0881012]
[1759240881275,0.96935875,113460.0,113450.0,0.0881012]
[1759240881480,1.80291875,113460.0,113430.0,0.1057412]
[1759240881669,0.4489041,113450.0,113440.0,0.0881058]
[1759240881868,0.96896645,113450.0,113440.0,0.0881058]
[1759240882070,0.96896645,113450.0,113430.0,0.1057368]
[1759240882275,0.96897425,113440.0,113430.0,0.0889148]
[1759240882577,1.80253425,113440.0,113430.0,0.0881148]
[1759240882778,0.0881197,113430.0,113420.0,0.0008]
[1759240883078,0.96898205,113430.0,113410.0,8.553e-05]
[1759240883280,0.88086235,113420.0,113410.0,0.08821563]
[1759240883587,0.96898985,113420.0,113410.0,0.08821563]
[1759240884084,2.20250985,113420.0,113410.0,8.553e-05]
[1759240884280,0.0881477,113400.0,113380.0,0.13120529]
[1759240884488,0.88086235,113390.0,113380.0,0.1135686]
[1759240884677,0.96901315,113390.0,113380.0,0.02581]
[1759240884877,1.36901315,113390.0,113380.0,0.02581]
[1759240885283,2.20269868,113390.0,113380.0,0.02541]
[1759240885477,1.28094788,113390.0,113380.0,0.1139686]
[1759240885679,2.11450788,113390.0,113380.0,0.1139686]
[1759240885884,1.71458788,113390.0,113380.0,0.1135686]
[1759240886080,1.71458788,113390.0,113380.0,0.1139686]
[1759240886281,0.36088553,113390.0,113380.0,0.1139686]
[1759240886588,0.53154788,113390.0,113380.0,0.1139686]
[1759240886785,0.89234788,113390.0,113380.0,0.1135686]
[1759240886979,0.01148553,113390.0,113380.0,0.1135686]
[1759240887178,0.01108553,113390.0,113380.0,1.03363095]
[1759240887379,0.0008,113410.0,113400.0,0.088143]
[1759240887785,0.0008,113410.0,113400.0,0.09094296]
[1759240887978,0.88086235,113420.0,113410.0,0.0881352]
[1759240888379,0.96898985,113420.0,113400.0,0.088143]
[1759240888674,1.71462235,113410.0,113400.0,0.095143]
[1759240889081,2.20275755,113410.0,113400.0,0.007]
[1759240889280,2.19875755,113410.0,113400.0,0.0004]
[1759240889482,2.19875755,113410.0,113390.0,0.0881469]
[1759240889782,1.4660677,113400.0,113380.0,0.1143641]
[1759240889987,0.88086235,113390.0,113380.0,0.1135641]
[1759240890182,1.80285315,113390.0,113380.0,0.02541]
[1759240890382,2.20285315,113390.0,113380.0,0.02581]
[1759240890587,2.20285315,113390.0,113380.0,0.02541]
[1759240890889,2.11498235,113390.0,113380.0,0.1139686]
[1759240891082,1.28086235,113390.0,113380.0,0.1139686]
[1759240891288,0.3608,113390.0,113380.0,0.5139686]
[1759240891479,0.88086235,113390.0,113380.0,0.5139686]
[1759240891679,0.0004,113390.0,113380.0,0.5139686]
[1759240891875,0.0004,113390.0,113380.0,1.39483095]
[1759240892081,0.3608,113400.0,113390.0,0.0881508]
[1759240892483,0.3746,113410.0,113400.0,0.088143]
[1759240892683,1.2102,113410.0,113400.0,0.088143]
[1759240892888,1.1972,113410.0,113400.0,0.088143]
[1759240893084,0.3608,113410.0,113400.0,0.488143]
[1759240893282,0.3612,113410.0,113400.0,0.488143]
[1759240893591,0.3608,113430.0,113420.0,0.0881275]
[1759240893891,0.3616,113430.0,113420.0,0.0881275]
[1759240894090,0.3608,113430.0,113420.0,0.4881275]
[1759240894282,0.3612,113430.0,113420.0,0.4881275]
[1759240894488,0.38115203,113440.0,113430.0,0.0881197]
[1759240894688,0.83416844,113440.0,113430.0,0.0881197]
[1759240894883,0.02035203,113440.0,113430.0,0.0881197]
[1759240895089,0.38115203,113440.0,113430.0,0.0881197]
[1759240895584,0.83416844,113440.0,113430.0,0.0881197]
[1759240895985,0.92228034,113440.0,113430.0,0.0004]
[1759240896186,1.32228034,113440.0,113430.0,0.0004]
[1759240896692,0.0881197,113430.0,113420.0,0.0881266]
[1759240896885,1.64977641,113430.0,113420.0,0.0889266]
[1759240897087,0.3608,113430.0,113420.0,0.0881266]
[1759240897290,1.64997641,113430.0,113420.0,0.0885266]
[1759240897484,1.64997641,113430.0,113420.0,0.0004]
[1759240897485,1.73809611,113430.0,113420.0,0.0004]
[1759240897690,2.13509611,113430.0,113420.0,0.0004]
[1759240897893,2.13509611,113430.0,113420.0,0.0885275]
[1759240898388,2.04697641,113430.0,113420.0,0.0885275]
[1759240898992,2.13509611,113430.0,113420.0,0.0885275]
[1759240899395,1.73509611,113430.0,113420.0,0.0004]
[1759240899693,1.64697641,113430.0,113420.0,0.0885275]
[1759240899899,1.68797641,113430.0,113420.0,0.0885275]
[1759240900288,0.85181641,113430.0,113420.0,0.0885275]
[1759240900591,1.19428,113430.0,113420.0,0.0885275]
[1759240900794,1.22768,113430.0,113420.0,0.0885275]
[1759240900999,0.3912,113430.0,113420.0,0.0885275]
[1759240901496,0.3908,113430.0,113420.0,0.4885275]
[1759240901683,0.0334,113430.0,113420.0,1.30234391]
[1759240901888,0.0334,113430.0,113420.0,0.90234391]
[1759240902091,0.033,113430.0,113420.0,0.90234391]
[1759240902283,0.38115203,113440.0,113430.0,0.0881197]
[1759240902888,0.3608,113440.0,113430.0,0.94113611]
[1759240903193,0.3612,113440.0,113430.0,0.94113611]
[1759240903393,0.0004,113440.0,113430.0,2.13877611]
[1759240904096,0.015,113440.0,113430.0,2.13857611]
[1759240904301,0.3616,113460.0,113450.0,0.0881042]
[1759240904490,0.3608,113460.0,113450.0,0.0881042]
[1759240904892,0.3612,113460.0,113450.0,0.0881042]
[1759240905595,0.81421641,113460.0,113450.0,0.0881042]
[1759240905796,0.82121641,113460.0,113450.0,0.0881042]
[1759240905998,0.3682,113460.0,113450.0,0.0881042]
[1759240906700,0.90931281,113460.0,113450.0,0.0881042]
[1759240906994,0.0881042,113450.0,113430.0,0.0881144]
[1759240907201,0.81381641,113440.0,113430.0,0.0881144]
[1759240907899,0.81081641,113440.0,113430.0,0.0881144]
[1759240908095,0.81081641,113440.0,113430.0,0.0885144]
[1759240908998,0.81081641,113440.0,113430.0,0.0915144]
[1759240909406,1.25972831,113440.0,113430.0,0.0885144]
[1759240909589,1.26372831,113440.0,113430.0,0.0881144]
[1759240909794,1.26372831,113440.0,113430.0,0.0004]
[1759240909994,1.26372831,113440.0,113410.0,0.0881311]
[1759240909995,0.0881228,113430.0,113410.0,0.0881311]
[1759240910191,1.17461641,113420.0,113410.0,0.0889311]
[1759240910599,1.57461641,113420.0,113410.0,0.0889311]
[1759240911097,1.57461641,113420.0,113410.0,0.0881311]
[1759240911098,0.3608,113420.0,113410.0,0.0881311]
[1759240911301,0.3608,113440.0,113430.0,0.0881195]
[1759240911490,1.66417641,113440.0,113430.0,0.0881195]
[1759240911901,1.66473641,113440.0,113430.0,0.0885195]
[1759240912100,1.65073641,113440.0,113430.0,0.0885195]
[1759240912302,1.65973641,113440.0,113430.0,0.0885195]
[1759240912903,1.65673641,113440.0,113430.0,0.0885195]
[1759240913101,1.73884821,113440.0,113430.0,0.0885195]
[1759240913304,1.75284821,113440.0,113430.0,0.0885195]
[1759240913694,2.15284821,113440.0,113430.0,0.0004]
[1759240914097,2.15284821,113440.0,113420.0,0.0881257]
[1759240914298,0.81381641,113430.0,113420.0,0.0889257]
[1759240914901,0.3608,113430.0,113420.0,0.0889257]
[1759240915293,0.3748,113440.0,113430.0,0.0881195]
[1759240915798,0.3612,113440.0,113430.0,0.4881195]
[1759240916000,0.3672,113440.0,113430.0,0.4881195]
[1759240916397,0.3642,113440.0,113430.0,0.4881195]
[1759240916797,0.3612,113440.0,113430.0,0.4881195]
[1759240917000,0.3622,113440.0,113430.0,0.4881195]
[1759240917900,0.3622,113440.0,113430.0,0.94113591]
[1759240917901,0.0014,113440.0,113430.0,0.94113591]
[1759240918101,0.001,113440.0,113430.0,0.94113591]
[1759240918402,0.0014,113440.0,113430.0,1.30193591]
[1759240918603,0.001,113440.0,113430.0,1.30193591]
[1759240918802,0.0004,113440.0,113430.0,1.30193591]
[1759240919000,0.0094,113440.0,113430.0,2.13801591]
[1759240919302,0.0094,113440.0,113430.0,0.9238795]
[1759240919503,0.0094,113440.0,113430.0,0.0881195]
[1759240919698,0.3612,113440.0,113430.0,0.0881195]
[1759240920196,0.3612,113440.0,113430.0,0.0885195]
[1759240920502,0.3622,113440.0,113430.0,0.0881195]
[1759240920702,0.0014,113440.0,113430.0,0.0885195]
[1759240920898,0.0014,113440.0,113430.0,0.94153591]
[1759240921199,0.0014,113440.0,113430.0,1.3249595]
[1759240921403,0.0014,113440.0,113430.0,0.9249595]
[1759240921602,0.0014,113440.0,113430.0,0.0885195]
[1759240922104,0.0004,113440.0,113430.0,0.0881195]
[1759240922301,0.0034,113440.0,113430.0,0.0885195]
[1759240922704,0.0094,113440.0,113430.0,0.0885195]
[1759240923500,0.0004,113440.0,113430.0,0.0885195]
[1759240923805,0.0014,113440.0,113430.0,0.0885195]
[1759240924505,0.0014,113440.0,113430.0,0.9247195]
[1759240925404,0.0034,113440.0,113430.0,0.9243995]
[1759240925799,0.0034,113440.0,113430.0,1.77741591]
[1759240926101,0.003,113440.0,113430.0,0.4885195]
[1759240926301,0.0004,113440.0,113430.0,1.3243595]
[1759240926506,0.0064,113440.0,113430.0,0.4885195]
[1759240926704,0.0064,113440.0,113430.0,1.3243595]
[1759240927006,0.0064,113440.0,113430.0,0.9240795]
[1759240927202,0.3612,113440.0,113430.0,0.0885195]
[1759240927399,1.21521641,113440.0,113430.0,0.0885195]
[1759240927606,1.21521641,113440.0,113430.0,0.0881195]
[1759240927907,1.21521641,113440.0,113430.0,0.0885195]
[1759240928102,1.30332821,113440.0,113430.0,0.0881195]
[1759240928300,1.30332821,113440.0,113430.0,0.0004]
[1759240928500,0.0881195,113430.0,113420.0,0.088122]
[1759240928702,0.8828362,113430.0,113420.0,0.088122]
[1759240928901,1.7191962,113430.0,113420.0,0.088122]
[1759240929102,0.8828362,113430.0,113420.0,0.088122]
[1759240929408,0.8828362,113430.0,113420.0,0.088522]
[1759240929608,0.42981979,113430.0,113420.0,0.088522]
[1759240930501,0.3608,113430.0,113420.0,0.088522]
[1759240930704,0.3616,113440.0,113430.0,0.0881195]
[1759240930897,0.0008,113440.0,113430.0,0.4489195]
[1759240931105,0.81381641,113460.0,113450.0,0.088104]
[1759240931106,1.19732,113460.0,113450.0,0.088104]
[1759240931300,0.3608,113460.0,113450.0,0.088104]
[1759240931700,0.81421641,113460.0,113450.0,0.088104]
[1759240932102,0.3612,113460.0,113450.0,0.088104]
[1759240932708,0.3672,113460.0,113450.0,0.088104]
[1759240933301,0.82021641,113460.0,113450.0,0.088104]
[1759240933498,0.3672,113460.0,113450.0,0.088104]
[1759240933904,0.3732,113460.0,113450.0,0.088104]
[1759240934104,0.3728,113460.0,113450.0,0.088104]
[1759240934304,0.3732,113460.0,113450.0,0.088104]
[1759240934610,0.82621641,113460.0,113450.0,0.088104]
[1759240934805,1.31431261,113460.0,113430.0,0.5613595]
[1759240935020,0.81381641,113450.0,113440.0,0.0881118]
[1759240935504,1.30192041,113450.0,113440.0,0.0881118]
[1759240936102,0.7608,113450.0,113440.0,0.0881118]
[1759240936298,1.21381641,113450.0,113440.0,0.0881118]
[1759240936511,1.30492041,113450.0,113430.0,0.0885146]
[1759240936706,0.81381641,113440.0,113430.0,0.0885146]
[1759240937114,0.90192821,113440.0,113430.0,0.0881146]
[1759240937317,0.81381641,113440.0,113430.0,0.0885146]
[1759240938108,0.012,113440.0,113430.0,0.0885146]
[1759240938314,0.3728,113440.0,113430.0,0.0885146]
[1759240938511,0.82621641,113440.0,113430.0,0.0885146]
[1759240938712,0.81421641,113440.0,113430.0,0.0885146]
[1759240938903,1.21421641,113440.0,113430.0,0.0885146]
[1759240939110,0.0881195,113430.0,113420.0,0.0881247]
[1759240939409,1.81045302,113430.0,113420.0,0.0889273]
[1759240939611,1.81045302,113430.0,113420.0,0.0881273]
[1759240939808,1.81045302,113430.0,113420.0,0.0885273]
[1759240940009,1.35743661,113430.0,113420.0,0.0885273]
[1759240940205,1.81045302,113430.0,113420.0,0.0885273]
[1759240940410,0.88677352,113430.0,113420.0,0.0885273]
[1759240940713,1.81365312,113430.0,113420.0,0.0885273]
[1759240941115,1.72545352,113430.0,113420.0,0.0885273]
[1759240941416,1.81357302,113430.0,113420.0,0.0885273]
[1759240941716,0.88677352,113430.0,113420.0,0.0885273]
[1759240942010,1.81037302,113430.0,113420.0,0.0885273]
[1759240942217,1.81637302,113430.0,113420.0,0.0885273]
[1759240942415,1.72825352,113430.0,113420.0,0.0885273]
[1759240942616,1.72805352,113430.0,113420.0,0.0885273]
[1759240942814,1.81617302,113430.0,113420.0,0.0885273]
[1759240943216,2.21617302,113430.0,113420.0,0.0004]
[1759240943912,0.0881273,113420.0,113410.0,0.0881293]
[1759240944119,0.0881273,113420.0,113400.0,0.0889379]
[1759240944120,0.0881351,113410.0,113400.0,0.0889379]
[1759240944307,1.65201641,113410.0,113400.0,0.0889379]
[1759240944620,1.199,113410.0,113400.0,0.0881379]
[1759240944914,0.3608,113410.0,113400.0,0.0885379]
[1759240945214,0.81421641,113410.0,113400.0,0.0885379]
[1759240945421,1.65233641,113410.0,113400.0,0.0885379]
[1759240945616,0.3612,113410.0,113400.0,0.0881379]
[1759240945811,1.65237641,113410.0,113400.0,0.0885379]
[1759240946618,0.81421641,113410.0,113400.0,0.0885379]
[1759240946917,1.214,113410.0,113400.0,0.0885379]
[1759240947114,0.3762,113410.0,113400.0,0.0885379]
[1759240947314,0.0154,113410.0,113400.0,0.0885379]
[1759240947516,0.015,113410.0,113400.0,0.0885379]
[1759240947722,0.3762,113410.0,113400.0,0.0885379]
[1759240948322,0.0154,113410.0,113400.0,0.0885379]
[1759240948919,0.3762,113410.0,113400.0,0.0885379]
[1759240949122,0.3612,113410.0,113400.0,0.0885379]
[1759240949318,0.3672,113410.0,113400.0,0.0885379]
[1759240950321,0.0064,113410.0,113400.0,0.0885379]
[1759240950521,0.3612,113410.0,113400.0,0.0885379]
[1759240950821,0.82021641,113410.0,113400.0,0.0885379]
[1759240951022,0.82021641,113410.0,113400.0,0.0881379]
[1759240951216,0.82021641,113410.0,113400.0,0.0885379]
[1759240951417,0.81421641,113410.0,113400.0,0.0885379]
[1759240951612,1.65677641,113410.0,113400.0,0.0885379]
[1759240951926,0.81721641,113410.0,113400.0,0.0885379]
[1759240952120,0.0034,113410.0,113400.0,0.0885379]
[1759240952319,0.0004,113410.0,113400.0,0.0885379]
[1759240952515,0.82581641,113410.0,113400.0,0.0885379]
[1759240952722,0.83221641,113410.0,113400.0,0.0885379]
[1759240953125,0.83221641,113410.0,113400.0,0.0881379]
[1759240953324,0.82021641,113410.0,113400.0,0.0885379]
[1759240954318,0.3672,113410.0,113400.0,0.0885379]
[1759240954519,0.88847521,113410.0,113400.0,0.0885379]
[1759240954720,0.88547521,113410.0,113400.0,0.0885379]
[1759240955422,0.88247521,113410.0,113400.0,0.0885379]
[1759240955622,0.88847521,113410.0,113400.0,0.0885379]
[1759240956223,0.89147521,113410.0,113400.0,0.0885379]
[1759240956814,0.88247521,113410.0,113400.0,0.0885379]
[1759240957015,0.89447521,113410.0,113400.0,0.0885379]
[1759240957223,1.73315521,113410.0,113400.0,0.0885379]
[1759240957826,0.89447521,113410.0,113400.0,0.0885379]
[1759240958034,0.3672,113410.0,113400.0,0.0885379]
[1759240958220,0.88847521,113410.0,113400.0,0.0885379]
[1759240958426,0.3672,113410.0,113400.0,0.0885379]
[1759240958729,0.88807521,113410.0,113400.0,0.0885379]
[1759240959034,0.88847521,113410.0,113400.0,0.0885379]
[1759240959632,0.3612,113410.0,113400.0,0.0885379]
[1759240960025,0.88547521,113410.0,113400.0,0.0881379]
[1759240960327,0.89147521,113410.0,113400.0,0.0885379]
[1759240960524,0.3702,113410.0,113400.0,0.0885379]
[1759240960728,0.53067521,113410.0,113400.0,0.0885379]
[1759240961033,0.009,113410.0,113400.0,1.37061311]
[1759240961327,0.0004,113410.0,113400.0,1.3279379]
[1759240961531,0.003,113410.0,113400.0,1.6887379]
[1759240961725,0.0034,113410.0,113400.0,1.6887379]
[1759240962030,0.0004,113410.0,113400.0,1.2887379]
[1759240962225,0.3599147,113420.0,113410.0,0.0881353]
[1759240962727,0.88158991,113420.0,113410.0,0.0881353]
[1759240963326,1.36971741,113420.0,113410.0,0.0885353]
[1759240963532,2.20967741,113420.0,113400.0,0.0881353]
[1759240963727,0.97021051,113410.0,113400.0,0.0889353]
[1759240964231,0.97021051,113410.0,113400.0,0.0004]
[1759240964822,1.89148572,113410.0,113400.0,0.0004]
[1759240965026,0.088147,113400.0,113380.0,0.1135637]
[1759240965228,2.08351521,113390.0,113380.0,0.1143637]
[1759240966133,2.48351521,113390.0,113380.0,0.1143637]
[1759240966326,1.1216,113390.0,113380.0,0.1143637]
[1759240966527,2.08335521,113390.0,113380.0,0.1143637]
[1759240966738,2.08335521,113390.0,113380.0,0.1135637]
[1759240966937,2.08335521,113390.0,113380.0,0.1159637]
[1759240967129,2.08335521,113390.0,113380.0,0.1155637]
[1759240967324,1.24287521,113390.0,113380.0,0.1179637]
[1759240967736,2.08307521,113390.0,113380.0,0.1179637]
[1759240968036,2.16168568,113390.0,113380.0,0.1179637]
[1759240968431,2.16156568,113390.0,113380.0,0.1179637]
[1759240968939,2.15285244,113390.0,113380.0,0.1179637]
[1759240969134,2.15325244,113390.0,113380.0,0.1179637]
[1759240969338,2.16229363,113390.0,113380.0,0.1179637]
[1759240969531,2.16229363,113390.0,113380.0,0.1175637]
[1759240969736,2.16229363,113390.0,113380.0,0.1179637]
[1759240970342,1.32221363,113390.0,113380.0,0.1179637]
[1759240970742,2.16281363,113390.0,113380.0,0.1179637]
[1759240971341,2.25096443,113390.0,113380.0,0.1179686]
[1759240972047,2.25096443,113390.0,113380.0,0.02981]
[1759240972243,2.25096443,113390.0,113380.0,0.1179686]
[1759240972940,2.65096443,113390.0,113380.0,0.1179686]
[1759240973438,2.65096443,113390.0,113380.0,0.02981]
[1759240973642,2.65096443,113390.0,113380.0,0.02941]
[1759240973943,0.0881664,113370.0,113360.0,0.0889684]
[1759240974245,2.17144161,113370.0,113360.0,0.0889684]
[1759240974445,2.57144161,113370.0,113360.0,0.0889684]
[1759240974647,2.57144161,113370.0,113360.0,0.0881684]
[1759240974937,3.09271682,113370.0,113360.0,0.0004]
[1759240975142,3.09271682,113370.0,113350.0,0.0889773]
[1759240975143,3.09272242,113370.0,113350.0,0.0881773]
[1759240975344,1.40335042,113360.0,113350.0,0.0889773]
[1759240975645,1.72219521,113360.0,113350.0,0.0889773]
[1759240975845,1.71119521,113360.0,113350.0,0.0889773]
[1759240976040,0.3608,113360.0,113350.0,0.0889773]
[1759240976344,0.88207521,113360.0,113350.0,0.0889773]
[1759240976542,1.72207521,113360.0,113350.0,0.0889773]
[1759240976743,1.72199521,113360.0,113350.0,0.0889773]
[1759240977142,0.88207521,113360.0,113350.0,0.0889773]
[1759240977544,1.72771521,113360.0,113350.0,0.0889773]
[1759240977744,1.72871521,113360.0,113350.0,0.0889773]
[1759240978245,0.97724931,113360.0,113350.0,0.0889773]
[1759240978448,0.88907521,113360.0,113350.0,0.0889773]
[1759240978743,1.72855521,113360.0,113350.0,0.0889773]
[1759240978949,0.88907521,113360.0,113350.0,0.0889773]
[1759240979142,0.3678,113360.0,113350.0,0.0889773]
[1759240979445,0.3678,113360.0,113350.0,0.4889773]
[1759240979645,0.3682,113360.0,113350.0,0.4889773]
[1759240981146,0.0074,113360.0,113350.0,1.01025251]
[1759240981547,0.007,113360.0,113350.0,0.4889773]
[1759240981749,0.0074,113360.0,113350.0,0.6189773]
[1759240982158,0.0074,113360.0,113350.0,1.50105251]
[1759240982552,0.007,113360.0,113350.0,1.50105251]
[1759240982851,0.007,113360.0,113350.0,0.9797773]
[1759240983154,0.007,113360.0,113350.0,1.94121251]
[1759240983352,0.007,113360.0,113350.0,1.10105251]
[1759240983545,0.007,113360.0,113350.0,0.5797773]
[1759240983742,0.007,113360.0,113350.0,1.4202973]
[1759240983952,0.007,113360.0,113350.0,1.94157251]
[1759240984152,0.007,113360.0,113350.0,2.34157251]
[1759240984547,0.007,113360.0,113350.0,2.34165251]
[1759240984751,0.007,113360.0,113350.0,2.34173251]
[1759240985251,0.007,113360.0,113350.0,1.10105251]
[1759240985448,0.007,113360.0,113350.0,1.94221251]
[1759240985651,0.007,113360.0,113350.0,1.94141251]
[1759240985851,0.007,113360.0,113350.0,1.94181251]
[1759240986049,0.007,113360.0,113350.0,1.94141251]
[1759240986252,0.007,113360.0,113350.0,1.94181251]
[1759240986451,0.007,113360.0,113350.0,1.94141251]
[1759240986651,0.88907521,113360.0,113350.0,0.0885773]
[1759240986853,0.97724991,113360.0,113350.0,0.0885773]
[1759240987048,1.37724991,113360.0,113340.0,0.0881845]
[1759240987250,0.88207521,113350.0,113340.0,0.0889845]
[1759240987453,0.3608,113350.0,113340.0,0.0881845]
[1759240987756,0.97025771,113350.0,113340.0,0.0885845]
[1759240987951,0.97025771,113350.0,113340.0,0.0881845]
[1759240988146,0.97025771,113350.0,113340.0,0.1005845]
[1759240988350,0.97025771,113350.0,113340.0,0.1035845]
[1759240988753,0.88207521,113350.0,113340.0,0.1035845]
[1759240989053,1.29307521,113350.0,113340.0,0.0915845]
[1759240989356,2.13415521,113350.0,113340.0,0.0915904]
[1759240989555,1.61288,113350.0,113340.0,0.0915904]
[1759240989755,2.13415521,113350.0,113340.0,0.0915904]
[1759240990159,2.13439521,113350.0,113340.0,0.0915904]
[1759240990658,0.9639704,113350.0,113340.0,0.0915904]
[1759240990854,1.8052504,113350.0,113340.0,0.0915904]
[1759240991054,0.9639704,113350.0,113340.0,0.0915904]
[1759240991260,0.44269519,113350.0,113340.0,0.0915904]
[1759240991651,0.43169519,113350.0,113340.0,0.0885904]
[1759240991857,0.43669519,113350.0,113340.0,0.0885904]
[1759240992761,0.43669519,113350.0,113340.0,0.60986561]
[1759240992966,0.43669519,113350.0,113340.0,0.0885904]
[1759240993461,0.9579704,113350.0,113340.0,0.0885904]
[1759240993760,1.3579704,113350.0,113340.0,0.0885904]
[1759240993962,1.3579704,113350.0,113340.0,0.0881904]
[1759240994157,1.446153,113350.0,113340.0,0.0885904]
[1759240994653,1.3579704,113350.0,113340.0,0.0885904]
[1759240994849,1.3579704,113350.0,113340.0,0.0885903]
[1759240995258,1.3579704,113350.0,113340.0,0.0881903]
[1759240995455,1.3579704,113350.0,113340.0,0.0885903]
[1759240996355,1.4461529,113350.0,113340.0,0.0004]
[1759240996560,1.4461529,113350.0,113320.0,0.0008]
[1759240996561,0.0881911,113340.0,113320.0,0.0882029]
[1759240996761,1.72319521,113330.0,113320.0,0.0890029]
[1759240997063,1.72319521,113330.0,113320.0,0.0882029]
[1759240997263,1.72319521,113330.0,113320.0,0.0886029]
[1759240997463,1.73205821,113330.0,113320.0,0.0882029]
[1759240997762,1.73177821,113330.0,113320.0,0.0896029]
[1759240997952,0.369663,113330.0,113320.0,0.0896029]
[1759240998157,1.110183,113330.0,113320.0,0.0896029]
[1759240998356,0.88207521,113340.0,113330.0,0.0881981]
[1759240998560,1.20348,113340.0,113330.0,0.0881981]
[1759240998963,1.72475521,113340.0,113330.0,0.0881981]
[1759240999350,0.88207521,113340.0,113330.0,0.0881981]
[1759240999551,1.72463521,113340.0,113330.0,0.0881981]
[1759240999861,1.73559807,113340.0,113330.0,0.0881981]
[1759241000558,0.89307807,113340.0,113330.0,0.0881981]
[1759241000754,1.73559807,113340.0,113330.0,0.0881981]
[1759241001257,1.73563807,113340.0,113330.0,0.0881981]
[1759241001458,1.73363807,113340.0,113330.0,0.0881981]
[1759241001659,1.21652286,113340.0,113330.0,0.0881981]
[1759241001859,1.73779807,113340.0,113330.0,0.0881981]
[1759241002059,1.73755807,113340.0,113330.0,0.0881981]
[1759241002261,1.82574837,113340.0,113330.0,0.0881981]
[1759241002562,0.088198,113330.0,113320.0,0.0881982]
[1759241002761,0.88207521,113330.0,113320.0,0.0881982]
[1759241003356,1.72495521,113330.0,113320.0,0.0885982]
[1759241003558,1.72507521,113330.0,113320.0,0.0885982]
[1759241003766,0.3608,113330.0,113320.0,0.60987341]
[1759241003958,1.21712286,113340.0,113330.0,0.088198]
[1759241004153,1.73839807,113340.0,113330.0,0.088198]
[1759241005062,1.21712286,113340.0,113330.0,0.088198]
[1759241005270,1.73839807,113340.0,113330.0,0.088198]
[1759241005559,1.73483807,113340.0,113330.0,0.088198]
[1759241006068,2.22302837,113340.0,113320.0,0.0892019]
[1759241006258,0.88207521,113330.0,113320.0,0.0892019]
[1759241006459,0.97027321,113330.0,113320.0,0.0892019]
[1759241006658,1.37027321,113330.0,113320.0,0.0892019]
[1759241006863,1.37027321,113330.0,113320.0,0.0886019]
[1759241007064,1.37027321,113330.0,113320.0,0.0882019]
[1759241007253,1.37027321,113330.0,113320.0,0.0886019]
[1759241007857,1.37027321,113330.0,113320.0,0.0896019]
[1759241008357,1.89154842,113330.0,113320.0,0.0014]
[1759241008559,1.37027321,113330.0,113320.0,0.0892059]
[1759241008758,1.37027321,113330.0,113320.0,0.0896059]
[1759241008958,1.89154842,113330.0,113320.0,0.0004]
[1759241009164,1.89308497,113330.0,113320.0,0.001]
[1759241009862,1.89308497,113330.0,113320.0,0.0014]
[1759241010468,0.97580976,113330.0,113320.0,0.0886058]
[1759241010764,1.81979321,113330.0,113320.0,0.0886058]
[1759241011164,1.81995321,113330.0,113320.0,0.0004]
[1759241011465,2.21995321,113330.0,113320.0,0.0882058]
[1759241011865,2.21795321,113330.0,113320.0,0.0886058]
[1759241012054,2.21795321,113330.0,113320.0,0.0004]
[1759241012464,2.21799321,113330.0,113320.0,0.0004]
[1759241012856,1.37227321,113330.0,113320.0,0.0004]
[1759241013169,2.21783321,113330.0,113320.0,0.0004]
[1759241013764,2.21771321,113330.0,113320.0,0.0004]
[1759241014271,2.15027672,113330.0,113320.0,0.0004]
[1759241014764,1.30483672,113330.0,113320.0,0.0004]
[1759241015270,2.15007672,113330.0,113320.0,0.0004]
[1759241016160,1.30483672,113330.0,113320.0,0.0004]
[1759241016367,0.90483672,113330.0,113320.0,0.0886058]
[1759241016562,1.74991672,113330.0,113320.0,0.0886058]
[1759241018265,1.74991672,113330.0,113320.0,0.0004]
[1759241018661,2.14991672,113330.0,113320.0,0.0004]
[1759241019056,0.0882058,113320.0,113310.0,9.672e-05]
[1759241019262,0.90284452,113320.0,113310.0,0.00089672]
[1759241019567,0.90284452,113320.0,113310.0,9.672e-05]
[1759241019775,0.90284452,113320.0,113310.0,0.00049672]